Workbook

Sheet Formato
B2: FORMATO PARA MODIFICACIÓN DE ÓRDENES DE COMPRA
B3: Tienda Virtual del Estado Colombiano
B5: Número de Orden de Compra a modificar: | E5: 4735 | H5: Número de modificación de la Orden de Compra: | K5: 2
B8: Entidad Compradora: | D8: Agencia Colombiana para la Reintegración de Personas y Grupos Alzados en Armas | L8: NIT: | M8: 900477169-8
B10: Nombre del solicitante: | D10: Brayan Gabriel Plazas Riaño | K10: Teléfono de contacto: | M10: 5932211 Ext 320
B12: Proveedor : | D12: UNE
B14: Tipo
B16: Tipo | D16: Modificación de la Orden de Compra
B18: Justificación de la modificación o de las acciones a realizar
B20: Se requiere reducir la orden de compra por un valor de $103.502.816 para liberar el saldo correspondiente al año 2015
B22: Modificación información general
B24: Nombre del campo | D24: ¿Requiere modificación Si/No? | E24: Datos actuales | J24: Nuevos datos
B26: Actualizar supervisor | D26: NO | E26: Nombre del supervisor actual | J26: Nombre nuevo supervisor
B28: Fecha de vencimiento | D28: NO | E28: Fecha vencimiento actual | J28: Nueva fecha de vencimiento
B30: Dirección y/o teléfono | D30: NO | E30: Dirección / teléfono actual | J30: Nueva dirección / teléfono
B32: Gravámenes adicionales | D32: NO | E32: Gravamen(es) actual | J32: Nuevo(s) gravamen(es)
A36: Modificación de artículos y servicios
A38: Tipo de modificación | B38: Información actual | K38: Nueva información
B39: Número de la línea según O.C. | C39: Nombre del artículo | E39: Cantidad | F39: Unidad de medida | G39: Precio unitario | H39: Total | I39: Información presupuestal | K39: Nombre del artículo | M39: Cantidad | N39: Unidad de medida | O39: Precio unitario | P39: Total | Q39: Información presupuestal
A40: Modificación de artículo o servicio | B40: 1 | C40: 1.9 - Enlace dedicado Internet 512Mbps - Oro - Tipo 1 - 22 Mes | E40: 22 | F40: Mes | G40: 10979702 | H40: =E40*G40 -> 241553444 | K40: =C40 -> 1.9 - Enlace dedicado Internet 512Mbps - Oro - Tipo 1 - 22 Mes | M40: 20.5 | N40: Mes | O40: 10979702 | P40: =M40*O40 -> 225083891
A41: Modificación de artículo o servicio | B41: 2 | C41: 1.94 - Enlace dedicado Región 3 10Mbps - Oro - Tipo 2 - 22 Mes | E41: 22 | F41: Mes | G41: 2644220 | H41: 58172840 | K41: =C41 -> 1.94 - Enlace dedicado Región 3 10Mbps - Oro - Tipo 2 - 22 Mes | M41: 20.5 | N41: Mes | O41: 2644220 | P41: =M41*O41 -> 54206510
A42: Modificación de artículo o servicio | B42: 3 | C42: 4.000 - Monitoreo_detallado_comunicaciones Metrica - Oro - Tipo 2 - 22 Mes | E42: 22 | F42: Mes | G42: 413114 | H42: 9088508 | K42: =C42 -> 4.000 - Monitoreo_detallado_comunicaciones Metrica - Oro - Tipo 2 - 22 Mes | M42: 20.5 | N42: Mes | O42: 413114 | P42: =M42*O42 -> 8468837
A43: Eliminar artículo o servicio | B43: 4 | C43: 2.2 - Experto TI Tipo 2 - Oro - Tipo 1 - 40 hora | E43: 40 | F43: Horas | G43: 67512 | H43: 2700480 | K43: No aplica | M43: No aplica | N43: No aplica | O43: No aplica | P43: 0 | Q43: No aplica
A44: Modificación de artículo o servicio | B44: 5 | C44: 1.17 - Enlace dedicado 128Mbps - Oro - Tipo 1 - 22 Mes | E44: 22 | F44: Mes | G44: 3263080 | H44: 71787760 | K44: =C44 -> 1.17 - Enlace dedicado 128Mbps - Oro - Tipo 1 - 22 Mes | M44: 20.5 | N44: Mes | O44: 3263080 | P44: =M44*O44 -> 66893140
A45: Modificación de artículo o servicio | B45: 6 | C45: 1.12 - Enlace dedicado 10Mbps - Oro - Tipo 1 - 22 Mes | E45: 22 | F45: Mes | G45: 1138702 | H45: 25051444 | K45: 1.12 - Enlace dedicado 10Mbps - Oro - Tipo 1 - 22 Mes | M45: 20.5 | N45: Mes | O45: 1138702 | P45: 23343391
A46: Modificación de artículo o servicio | B46: 7 | C46: 1.12 - Enlace dedicado 10Mbps - Oro - Tipo 1 - 22 Mes | E46: 22 | F46: Mes | G46: 1138702 | H46: 25051444 | K46: 1.12 - Enlace dedicado 10Mbps - Oro - Tipo 1 - 22 Mes | M46: 20.5 | N46: Mes | O46: 1138702 | P46: 23343391
A47: Modificación de artículo o servicio | B47: 8 | C47: 1.12 - Enlace dedicado 10Mbps - Oro - Tipo 1 - 22 Mes | E47: 22 | F47: Mes | G47: 1138702 | H47: 25051444 | K47: 1.12 - Enlace dedicado 10Mbps - Oro - Tipo 1 - 22 Mes | M47: 20.5 | N47: Mes | O47: 1138702 | P47: 23343391
A48: Modificación de artículo o servicio | B48: 9 | C48: 1.12 - Enlace dedicado 10Mbps - Oro - Tipo 1 - 22 Mes | E48: 22 | F48: Mes | G48: 1138702 | H48: 25051444 | K48: 1.12 - Enlace dedicado 10Mbps - Oro - Tipo 1 - 22 Mes | M48: 20.5 | N48: Mes | O48: 1138702 | P48: 23343391
A49: Modificación de artículo o servicio | B49: 10 | C49: 1.12 - Enlace dedicado 10Mbps - Oro - Tipo 1 - 22 Mes | E49: 22 | F49: Mes | G49: 1138702 | H49: 25051444 | K49: 1.12 - Enlace dedicado 10Mbps - Oro - Tipo 1 - 22 Mes | M49: 20.5 | N49: Mes | O49: 1138702 | P49: 23343391
A50: Modificación de artículo o servicio | B50: 11 | C50: 1.12 - Enlace dedicado 10Mbps - Oro - Tipo 1 - 22 Mes | E50: 22 | F50: Mes | G50: 1138702 | H50: 25051444 | K50: 1.12 - Enlace dedicado 10Mbps - Oro - Tipo 1 - 22 Mes | M50: 20.5 | N50: Mes | O50: 1138702 | P50: 23343391
A51: Modificación de artículo o servicio | B51: 12 | C51: 1.12 - Enlace dedicado 10Mbps - Oro - Tipo 1 - 22 Mes | E51: 22 | F51: Mes | G51: 1138702 | H51: 25051444 | K51: 1.12 - Enlace dedicado 10Mbps - Oro - Tipo 1 - 22 Mes | M51: 20.5 | N51: Mes | O51: 1138702 | P51: 23343391
A52: Modificación de artículo o servicio | B52: 13 | C52: 1.13 - Enlace dedicado 20Mbps - Oro - Tipo 1 - 22 Mes | E52: 22 | F52: Mes | G52: 1492015 | H52: 32824330 | K52: 1.13 - Enlace dedicado 20Mbps - Oro - Tipo 1 - 22 Mes | M52: 20.5 | N52: Mes | O52: 1492015 | P52: 30586307.5
A53: Modificación de artículo o servicio | B53: 14 | C53: 1.12 - Enlace dedicado 10Mbps - Oro - Tipo 1 - 22 Mes | E53: 22 | F53: Mes | G53: 1138702 | H53: 25051444 | K53: 1.12 - Enlace dedicado 10Mbps - Oro - Tipo 1 - 22 Mes | M53: 20.5 | N53: Mes | O53: 1138702 | P53: 23343391
A54: Modificación de artículo o servicio | B54: 15 | C54: 1.94 - Enlace dedicado Región 3 10Mbps - Oro - Tipo 2 - 22 Mes | E54: 22 | F54: Mes | G54: 2644220 | H54: 58172840 | K54: 1.94 - Enlace dedicado Región 3 10Mbps - Oro - Tipo 2 - 22 Mes | M54: 20.5 | N54: Mes | O54: 2644220 | P54: 54206510
A55: Modificación de artículo o servicio | B55: 16 | C55: 1.94 - Enlace dedicado Región 3 10Mbps - Oro - Tipo 2 - 22 Mes | E55: 22 | F55: Mes | G55: 2644220 | H55: 58172840 | K55: 1.94 - Enlace dedicado Región 3 10Mbps - Oro - Tipo 2 - 22 Mes | M55: 20.5 | N55: Mes | O55: 2644220 | P55: 54206510
A56: Modificación de artículo o servicio | B56: 17 | C56: 1.94 - Enlace dedicado Región 3 10Mbps - Oro - Tipo 2 - 22 Mes | E56: 22 | F56: Mes | G56: 2644220 | H56: 58172840 | K56: 1.94 - Enlace dedicado Región 3 10Mbps - Oro - Tipo 2 - 22 Mes | M56: 20.5 | N56: Mes | O56: 2644220 | P56: 54206510
A57: Modificación de artículo o servicio | B57: 18 | C57: 1.94 - Enlace dedicado Región 3 10Mbps - Oro - Tipo 2 - 22 Mes | E57: 22 | F57: Mes | G57: 2644220 | H57: 58172840 | K57: 1.94 - Enlace dedicado Región 3 10Mbps - Oro - Tipo 2 - 22 Mes | M57: 20.5 | N57: Mes | O57: 2644220 | P57: 54206510
A58: Modificación de artículo o servicio | B58: 19 | C58: 1.95 - Enlace dedicado Región 3 20Mbps - Oro - Tipo 2 - 22 Mes | E58: 22 | F58: Mes | G58: 3733414 | H58: 82135108 | K58: 1.95 - Enlace dedicado Región 3 20Mbps - Oro - Tipo 2 - 22 Mes | M58: 20.5 | N58: Mes | O58: 3733414 | P58: 76534987
A59: Modificación de artículo o servicio | B59: 20 | C59: 1.94 - Enlace dedicado Región 3 10Mbps - Oro - Tipo 2 - 22 Mes | E59: 22 | F59: Mes | G59: 2644220 | H59: 58172840 | K59: 1.94 - Enlace dedicado Región 3 10Mbps - Oro - Tipo 2 - 22 Mes | M59: 20.5 | N59: Mes | O59: 2644220 | P59: 54206510
A60: Modificación de artículo o servicio | B60: 21 | C60: 1.94 - Enlace dedicado Región 3 10Mbps - Oro - Tipo 2 - 22 Mes | E60: 22 | F60: Mes | G60: 2644220 | H60: 58172840 | K60: 1.94 - Enlace dedicado Región 3 10Mbps - Oro - Tipo 2 - 22 Mes | M60: 20.5 | N60: Mes | O60: 2644220 | P60: 54206510
A61: Modificación de artículo o servicio | B61: 22 | C61: 1.94 - Enlace dedicado Región 3 10Mbps - Oro - Tipo 2 - 22 Mes | E61: 22 | F61: Mes | G61: 2644220 | H61: 58172840 | K61: 1.94 - Enlace dedicado Región 3 10Mbps - Oro - Tipo 2 - 22 Mes | M61: 20.5 | N61: Mes | O61: 2644220 | P61: 54206510
A62: Modificación de artículo o servicio | B62: 23 | C62: 1.94 - Enlace dedicado Región 3 10Mbps - Oro - Tipo 2 - 22 Mes | E62: 22 | F62: Mes | G62: 2644220 | H62: 58172840 | K62: 1.94 - Enlace dedicado Región 3 10Mbps - Oro - Tipo 2 - 22 Mes | M62: 20.5 | N62: Mes | O62: 2644220 | P62: 54206510
A63: Modificación de artículo o servicio | B63: 24 | C63: 1.95 - Enlace dedicado Región 3 20Mbps - Oro - Tipo 2 - 22 Mes | E63: 22 | F63: Mes | G63: 3733414 | H63: 82135108 | K63: 1.95 - Enlace dedicado Región 3 20Mbps - Oro - Tipo 2 - 22 Mes | M63: 20.5 | N63: Mes | O63: 3733414 | P63: 76534987
A64: Modificación de artículo o servicio | B64: 25 | C64: 1.11 - Enlace dedicado 6Mbps - Plata - Tipo 1 - 22 Mes | E64: 22 | F64: Mes | G64: 1098195 | H64: 24160290 | K64: 1.11 - Enlace dedicado 6Mbps - Plata - Tipo 1 - 22 Mes | M64: 20.5 | N64: Mes | O64: 1098195 | P64: 22512997.5
A65: Modificación de artículo o servicio | B65: 26 | C65: 1.103 - Enlace dedicado Región 4 10Mbps - Oro - Tipo 2 - 22 Mes | E65: 22 | F65: Mes | G65: 2553749 | H65: 56182478 | K65: 1.103 - Enlace dedicado Región 4 10Mbps - Oro - Tipo 2 - 22 Mes | M65: 20.5 | N65: Mes | O65: 2553749 | P65: 52351854.5
A66: Modificación de artículo o servicio | B66: 27 | C66: 1.103 - Enlace dedicado Región 4 10Mbps - Oro - Tipo 2 - 22 Mes | E66: 22 | F66: Mes | G66: 2553749 | H66: 56182478 | K66: 1.103 - Enlace dedicado Región 4 10Mbps - Oro - Tipo 2 - 22 Mes | M66: 20.5 | N66: Mes | O66: 2553749 | P66: 52351854.5
A67: Modificación de artículo o servicio | B67: 28 | C67: 1.103 - Enlace dedicado Región 4 10Mbps - Oro - Tipo 2 - 22 Mes | E67: 22 | F67: Mes | G67: 2553749 | H67: 56182478 | K67: 1.103 - Enlace dedicado Región 4 10Mbps - Oro - Tipo 2 - 22 Mes | M67: 20.5 | N67: Mes | O67: 2553749 | P67: 52351854.5
A68: Modificación de artículo o servicio | B68: 29 | C68: 1.103 - Enlace dedicado Región 4 10Mbps - Oro - Tipo 2 - 22 Mes | E68: 22 | F68: Mes | G68: 2553749 | H68: 56182478 | K68: 1.103 - Enlace dedicado Región 4 10Mbps - Oro - Tipo 2 - 22 Mes | M68: 20.5 | N68: Mes | O68: 2553749 | P68: 52351854.5
A69: Modificación de artículo o servicio | B69: 30 | C69: 1.103 - Enlace dedicado Región 4 10Mbps - Oro - Tipo 2 - 22 Mes | E69: 22 | F69: Mes | G69: 2553749 | H69: 56182478 | K69: 1.103 - Enlace dedicado Región 4 10Mbps - Oro - Tipo 2 - 22 Mes | M69: 20.5 | N69: Mes | O69: 2553749 | P69: 52351854.5
A70: Modificación de artículo o servicio | B70: 31 | C70: 1.103 - Enlace dedicado Región 4 10Mbps - Oro - Tipo 2 - 22 Mes | E70: 22 | F70: Mes | G70: 2553749 | H70: 56182478 | K70: 1.103 - Enlace dedicado Región 4 10Mbps - Oro - Tipo 2 - 22 Mes | M70: 20.5 | N70: Mes | O70: 2553749 | P70: 52351854.5
A71: Modificación de artículo o servicio | B71: 32 | C71: 1.103 - Enlace dedicado Región 4 10Mbps - Oro - Tipo 2 - 22 Mes | E71: 22 | F71: Mes | G71: 2553749 | H71: 56182478 | K71: 1.103 - Enlace dedicado Región 4 10Mbps - Oro - Tipo 2 - 22 Mes | M71: 20.5 | N71: Mes | O71: 2553749 | P71: 52351854.5
A72: Modificación de artículo o servicio | B72: 33 | C72: 1.103 - Enlace dedicado Región 4 10Mbps - Oro - Tipo 2 - 22 Mes | E72: 22 | F72: Mes | G72: 2553749 | H72: 56182478 | K72: 1.103 - Enlace dedicado Región 4 10Mbps - Oro - Tipo 2 - 22 Mes | M72: 20.5 | N72: Mes | O72: 2553749 | P72: 52351854.5
A73: Modificación de artículo o servicio | B73: 34 | C73: 1.103 - Enlace dedicado Región 4 10Mbps - Oro - Tipo 2 - 22 Mes | E73: 22 | F73: Mes | G73: 2553749 | H73: 56182478 | K73: 1.103 - Enlace dedicado Región 4 10Mbps - Oro - Tipo 2 - 22 Mes | M73: 20.5 | N73: Mes | O73: 2553749 | P73: 52351854.5
A74: Modificación de artículo o servicio | B74: 35 | C74: 1.103 - Enlace dedicado Región 4 10Mbps - Oro - Tipo 2 - 22 Mes | E74: 22 | F74: Mes | G74: 2553749 | H74: 56182478 | K74: 1.103 - Enlace dedicado Región 4 10Mbps - Oro - Tipo 2 - 22 Mes | M74: 20.5 | N74: Mes | O74: 2553749 | P74: 52351854.5
A75: Modificación de artículo o servicio | B75: 36 | C75: 1.103 - Enlace dedicado Región 4 10Mbps - Oro - Tipo 2 - 22 Mes | E75: 22 | F75: Mes | G75: 2553749 | H75: 56182478 | K75: 1.103 - Enlace dedicado Región 4 10Mbps - Oro - Tipo 2 - 22 Mes | M75: 20.5 | N75: Mes | O75: 2553749 | P75: 52351854.5
A76: Modificación de artículo o servicio | B76: 37 | C76: 1.104 - Enlace dedicado Región 4 20Mbps - Oro - Tipo 2 - 22 Mes | E76: 22 | F76: Mes | G76: 3699497 | H76: 81388934 | K76: 1.104 - Enlace dedicado Región 4 20Mbps - Oro - Tipo 2 - 22 Mes | M76: 20.5 | N76: Mes | O76: 3699497 | P76: 75839688.5
A77: Modificación de artículo o servicio | B77: 38 | C77: 1.103 - Enlace dedicado Región 4 10Mbps - Oro - Tipo 2 - 22 Mes | E77: 22 | F77: Mes | G77: 2553749 | H77: 56182478 | K77: 1.103 - Enlace dedicado Región 4 10Mbps - Oro - Tipo 2 - 22 Mes | M77: 20.5 | N77: Mes | O77: 2553749 | P77: 52351854.5
A78: Modificación de artículo o servicio | B78: 39 | C78: 1.19 - Enlace dedicado 512Mbps - Oro - Tipo 1 - 22 Mes | E78: 22 | F78: Mes | G78: 8065434 | H78: 177439548 | K78: 1.19 - Enlace dedicado 512Mbps - Oro - Tipo 1 - 22 Mes | M78: 20.5 | N78: Mes | O78: 8065434 | P78: 165341397
A79: Modificación de artículo o servicio | B79: 40 | C79: 1.11 - Enlace dedicado 6Mbps - Oro - Tipo 1 - 22 Mes | E79: 22 | F79: Mes | G79: 1098195 | H79: 24160290 | K79: 1.11 - Enlace dedicado 6Mbps - Oro - Tipo 1 - 22 Mes | M79: 16 | N79: Mes | O79: 1098195 | P79: 17571120
A80: Modificación de artículo o servicio | B80: 44 | C80: 1.12 - Enlace Dedicado 30 Mbps - Oro - Tipo 1 | E80: 8 | F80: Mes | G80: 2436000 | H80: =E80*G80 -> 19488000 | K80: =C80 -> 1.12 - Enlace Dedicado 30 Mbps - Oro - Tipo 1 | M80: 11.5 | N80: Mes | O80: 2436000 | P80: =M80*O80 -> 28014000
A81: Agregar nuevo artículo o servicio | B81: No aplica | C81: No aplica | E81: No aplica | F81: No aplica | G81: No aplica | H81: 0 | I81: No aplica | K81: 1.10 - Enlace dedicado 4Mbps - Oro - Tipo 1 - 5 Mes | M81: 4 | N81: Mes | O81: 950040 | P81: =M81*O81 -> 3800160
G83: TOTAL | H83: =SUM(H40:H81) -> 2247018648 | O83: TOTAL | P83: =SUM(P40:P81) -> 2100009484
K88: Valor total del IVA en la Orden de Compra: | N88: =P83-(P83/1.16) -> 289656480.6
B89: Firma ordenador del gasto | G89: Firma de Proveedor
K90: Valor total del AIU en la Orden de Compra:
A91: Nombre: | B91: Andrés Felipe Stapper Segrera | F91: Nombre:
A92: Documento de Identidad: | B92: 80108439 | E92: Documento de Identidad: | K92: Valor total gravámenes adicionales en la Orden de Compra:
A94: Fecha Elaboracion: | B94: 1 de julio de 2016 | K94: Valor total de la Orden de Compra: | N94: =P83 -> 2100009484

Sheet Instructivo de Diligenciamiento
B7: Instrucciones de diligenciamiento: Colombia Compra Eficiente ha diseñado este formato para que las Entidades Compradoras puedan realizar aclaraciones, modificaciones, cancelaciones o liquidaciones de las Órdenes de Compra que estén en ejecución y vigentes. Para ello debe indicar: 1. Datos generales: Datos básicos como número de la Orden de Compra que requiere cambiar, número consecutivo de solicitud tenga en cuenta que la primera solicitud corresponderá a la número “1”, nombre de la Entidad Compradora, nombre de la persona que solicita las acciones, NIT de la Entidad Compradora y el nombre del Proveedor que ejecuta la Orden de Compra. 2. Tipo: Las Entidades pueden solicitar cuatro tipos de acciones respecto de las Órdenes de Compra: (i) Aclaraciones: Son las indicaciones de cambio de información que no afectan el plazo, el valor o las condiciones contractuales de las Órdenes de Compra como: redacción en las condiciones de entrega, errores de digitación o rectificación de la fecha de vencimiento. Estas aclaraciones no requieren de la aceptación del Proveedor. Sin embargo una vez realizada la aclaración en la Orden de Compra, la Entidad Compradora debe notificarle al Proveedor el cambio. (ii) Modificaciones: Son indicaciones de cambio en aumento o disminución de valor o plazo, aumento o disminución de los bienes o servicios solicitados, cambios en las condiciones de ejecución o datos que afecten la ejecución de la Orden de Compra. Solo en los casos de cambio de supervisor y datos de notificación como dirección o teléfono se puede omitir la firma del Proveedor. Sin embargo una vez realizada la modificación, la Entidad Compradora debe notificarle al Proveedor el cambio. (iii) Cancelación: Es la manifestación de la Entidad de no ejecutar la totalidad de la Orden de Compra la cual también debe ser aceptada por el Proveedor. (iv) Liquidación: Es el ajuste formal y definitivo de las obligaciones derivadas de la Orden de Compra para establecer las acreencias pendientes a favor o en contra de cada parte de la Orden de Compra, así como para aclarar la ejecución de la misma. Se efectúa, cuando aplique, dentro de los términos establecidos en cada Acuerdo Marco de Precios. Se requiere la solicitud por parte de la Entidad Compradora firmada por el Ordenador del Gasto y el representante legal del Proveedor, así como el informe del supervisor de la Orden de Compra. 3. Justificación: Las razones de la realización del cambio o la cancelación de la Orden de Compra. 4. Especificar las modificaciones solicitadas a la información general de la Orden de Compra o la modificación detallada de los bienes y servicios así: (i) Modificación de información general: Modificaciones a: (a) nombre del supervisor; (b) fecha de vencimiento de la Orden de Compra; (c) dirección y/o teléfono de la Entidad Compradora; o (d) Gravámenes adicionales (estampillas), en todos los campos debe diligenciar la información actual en la Orden de Compra y los nueva información. (ii) Modificación de los artículos y/o servicios: (a) Modificaciones a los artículos o servicios: Adicionar o disminuir en cantidades un producto que fue adquirido en la Orden de Compra inicial. La Entidad debe identificar en los campos de “información actual”: (i) el número de la línea del artículo que lo puede consultar en la Orden de Compra (ii) el artículo adquirido inicialmente; (iii) las unidades de medida; (iv) las cantidades adquiridas; (v) los precios de la compra; y (vi) la información presupuestal. Para modificar o agregar nuevos artículos la Entidad Compradora debe identificar en el campo “nueva información”: (i) la cantidad final requerida; (ii) unidad de medida; (iii) precio unitario acordado previamente con el Proveedor el cual debe respetar lo dispuesto en el contrato correspondiente (precio techo, precio piso, etc.) y (iv) la información presupuestal que respalda el cambio o la inclusión. (b) Agregar nuevos artículos o servicios: Ingresar nuevos artículos que no se tenían contemplados en la Orden de Compra inicial. La Entidad Compradora debe previamente solicitarle al Proveedor el precio del artículo, el cual debe respetar lo dispuesto en el contrato correspondiente (precio techo, precio piso, etc.) y la Entidad Compradora lo debe indicar en el formato en el campo “nueva información”. (c) Eliminar artículos o servicios: Descartar artículos que la Entidad Compradora determine que no va a requerir durante la ejecución de la Orden de Compra. Para eliminar artículos la Entidad debe identificar en los campos de “información actual”: (i) el número de la línea del artículo que lo puede consultar en la Orden de Compra (ii) el artículo adquirido inicialmente; (iii) las unidades de medida; (iv) las cantidades adquiridas; (v) los precios de la compra; y (vi) la información presupuestal. En esta sección la Entidad Compradora puede agregar tantas filas como artículos requiera modificar haciendo clic en el botón de Agregar registro o Eliminar registro. 5. Consolidado de valores: Indicar en el recuadro el valor total del IVA, AUI, gravámenes adicionales y total de la Orden de Compra, estos campos serán los valores finales que quedarán en la Orden de Compra después de la modificación, tenga en cuenta que el campo de IVA no aplica para los AMP de papelería, vehículos y SOAT y que el campo de AIU solo aplica para aseo y cafetería. 6. Firmas del documento: El ordenador del gasto de la Entidad Compradora debe firmar el documento y enviarlo al Proveedor para que lo acepte y firme, en caso de que así se requiera. El documento firmado debe ser enviado a través del aplicativo dispuesto por Colombia Compra Eficiente para realizar las acciones solicitadas. 7. Fecha de elaboración del documento: Corresponde a la fecha en la que la Entidad Compradora y el Proveedor llegaron a un acuerdo para realizar las acciones y se suscribe el documento, recuerde que para poder realizar modificaciones en las Órdenes de Compra las mismas se deben acordar dentro de la vigencia de la Orden de Compra. Si la Entidad Compradora requiere agregar archivos que estén relacionados con las acciones a realizar como: copia del CDP y/o aprobación de Vigencia Futura (VF) que soporta la adición, soportes documentales, correos, cartas, etc... debe publicarlos junto con el documento de solicitud de modificación suscrito en un único archivo Pdf, tenga en cuenta que Colombia Compra Eficiente únicamente realizara las modificaciones especificadas en el formato enviado por el aplicativo.

Sheet Listas (hidden)
A1: TipoDeModificacion | C1: Modificacion
A2: Modificación de la Orden de Compra | C2: Modificación de artículo o servicio
A3: Aclaración a la Orden de Compra | C3: Agregar nuevo artículo o servicio
A4: Cancelación de la Orden de Compra | C4: Eliminar artículo o servicio
A5: Liquidación de la Orden de Compra | C5: Ninguna
